[Event "50th La Roda Open 2024"]
[Site "La Roda"]
[Date "2024.03.28"]
[Round "3.1"]
[White "Cabezas Ayala, Ivan"]
[Black "Aravindh, Chithambaram VR."]
[Result "0-1"]
[ECO "B68"]
[WhiteElo "2242"]
[BlackElo "2662"]
[Annotator "TA"]
[PlyCount "76"]
[EventDate "2024.03.27"]
[EventType "swiss"]
[EventCountry "ESP"]
[SourceTitle "playchess.com"]
[Source "ChessBase"]
[SourceQuality "1"]
[TimeControl "5400+30"]

{[%evp 18,76,44,12,27,0,73,60,68,76,79,13,31,-4,-22,-19,2,-63,0,-2,0,0,10,27,36,0,102,15,20,0,0,-43,-33,-30,-45,-59,-54,-154,-41,-43,-38,-12,-36,-36,-36,-104,0,-418,-431,-427,-410,-470,-502,-29988,-29989,-29990,-29991,-29991,-29990,-29990,-29990]} 1. e4 {[%emt 0:00:30]} c5 {[%emt 0:00:07]} 2. Nf3 {[%emt 0:00:15]} d6 {[%emt 0:00:12]} 3. d4 {[%emt 0:00:10]} cxd4 {[%emt 0:00:08]} 4. Nxd4 {[%emt 0:00:10]} Nf6 {[%emt 0:00:10]} 5. Nc3 {[%emt 0:00:11]} Nc6 {[%emt 0:00:07]} 6. Bg5 {[%emt 0:00:29]} e6 {[%emt 0:01:03]} 7. Qd2 {[%emt 0:00:25]} a6 {[%emt 0:00:07]} 8. O-O-O {[%emt 0:00:34]} Be7 {[%emt 0:00:46]} 9. f4 {[%emt 0:01:33]} Bd7 {[%emt 0:00:15]} 10. Kb1 {[%emt 0:04:57]} b5 {[%emt 0:01:28][%cal Bb7b5,Bb5b4][%mdl 32]} 11. Bxf6 {[%emt 0:00:47]} gxf6 {[%emt 0:01:52]} (11... Bxf6 $11 {remains equal.} 12. Nf3 Be7) 12. Nxc6 $16 {[%emt 0:00:19]} Bxc6 {[%emt 0:00:06] White is slightly better.} 13. Bd3 {[%emt 0:00:30]} Qb6 {[%emt 0:07:13]} 14. Rhf1 {[%emt 0:01:34]} (14. f5 $16) 14... h5 {[%emt 0:06:08]} 15. g3 {[%emt 0:12:55]} b4 {[%emt 0:20:15]} 16. Ne2 {[%emt 0:00:16]} Rb8 {[%emt 0:04:56]} 17. c3 {[%emt 0:07:26]} (17. Nc1 $11) 17... a5 {[%emt 0:15:25]} ({Better is} 17... d5 $15 18. e5 Ba4) 18. Qc2 {[%emt 0:10:39]} Kf8 {[%emt 0:01:06]} 19. f5 {[%emt 0:01:55] fxe6 is the strong threat.} bxc3 {[%emt 0:01:32]} 20. Nxc3 {[%emt 0:01:14]} Kg7 {[%emt 0:00:44]} 21. Qe2 {[%emt 0:09:39] And now fxe6 would win.} a4 {[%emt 0:07:44]} (21... Qd4 $1 $11 {keeps the balance.} 22. Ka1 Qc5) 22. Rd2 {[%emt 0:02:30]} (22. fxe6 $16 fxe6 23. Nd5 Qxb2+ (23... exd5 24. exd5 $16) 24. Qxb2 exd5 25. exd5 (25. Bb5 $2 Rxb5 26. exd5 Rhb8 $19)) 22... Bd7 $11 {[%emt 0:06:25]} 23. Rf4 {[%emt 0:08:02]} Qa5 {[%emt 0:11:41]} 24. Rc2 {[%emt 0:02:39]} a3 {[%emt 0:00:05]} 25. b3 {[%emt 0:01:31]} Rbc8 $36 {[%emt 0:00:06][%mdl 2048] Black fights for an advantage.} 26. Bc4 {[%emt 0:04:31]} Bd8 {[%emt 0:01:22]} 27. Rh4 {[%emt 0:04:53]} ({White should try} 27. Qd2 $15) 27... Qe5 {[%emt 0:03:21]} (27... exf5 $17 28. Rxh5 Rxh5 29. Qxh5 Rxc4 30. bxc4 Qb6+ 31. Kc1 Qe3+ 32. Kb1 fxe4) 28. Rxh5 $15 {[%emt 0:01:36]} Rxh5 {[%emt 0:00:04]} 29. Qxh5 {[%emt 0:00:05]} Ba5 {[%emt 0:00:34]} 30. Qg4+ $1 {[%emt 0:15:15]} Kf8 {[%emt 0:00:05]} 31. fxe6 {[%emt 0:00:15]} (31. Nd1 $1 $15) 31... fxe6 {[%emt 0:05:47]} (31... Bxe6 $17 32. Bxe6 Rxc3) 32. Nd5 $2 {[%emt 0:03:03][%mdl 8192] [#]} Rxc4 $1 $19 {[%emt 0:03:25][%mdl 512]} 33. bxc4 {[%emt 0:01:22] [#]} Ba4 $1 {[%emt 0:00:05]} (33... exd5 34. Qxd7 dxe4 35. Qb5 $18) (33... f5 34. Qg5 exd5 35. cxd5 $19) 34. Rf2 {[%emt 0:01:59]} (34. Nf4 $2 {leads to mate.} Bxc2+ 35. Kxc2 Qc3+ 36. Kd1 Qd2#) 34... exd5 {[%emt 0:00:05]} 35. cxd5 {[%emt 0:01:03]} (35. Qf4 $19 Qxe4+ 36. Qxe4 dxe4 37. Rxf6+ Ke7 38. Rf4) 35... Qc3 {[%emt 0:01:06] Black mates.} 36. Qe2 {[%emt 0:01:04]} Qb4+ {[%emt 0:00:44]} 37. Kc1 {[%emt 0:00:21]} Qc5+ {[%emt 0:00:41]} 38. Kb1 {[%emt 0:00:11]} Bc3 {[%emt 0:00:30] Weighted Error Value: White=0.63/Black=0.20 (precise) .  Loses game:     	White=1     	---        Mistake:       	White=6     	Black=5      Inaccurate:     	White=4     	---        OK:         	White=4     	Black=7      Best:        	White=1     	Black=2      Strong:       	White=1     	Black=1      Brilliant:      	---       	Black=1} 0-1

[Event "50th La Roda Open 2024"]
[Site "La Roda"]
[Date "2024.03.28"]
[Round "3.2"]
[White "Xu, Xiangyu"]
[Black "Pomes Marcet, Joan"]
[Result "1-0"]
[ECO "A25"]
[WhiteElo "2623"]
[BlackElo "2235"]
[Annotator "TA"]
[PlyCount "83"]
[EventDate "2024.03.27"]
[EventType "swiss"]
[EventCountry "ESP"]
[SourceTitle "playchess.com"]
[Source "ChessBase"]
[SourceQuality "1"]
[TimeControl "5400+30"]

{[%evp 9,83,33,46,39,37,42,76,55,53,43,35,39,46,59,50,43,44,54,42,31,26,39,53,50,52,48,54,39,73,72,100,105,112,108,124,124,137,123,165,168,157,129,131,123,150,135,185,169,169,164,245,204,308,302,595,604,675,667,1039,1028,1667,1976,1903,1525,1551,1799,2066,2106,2223,2195,2195,2031,1234,1220,1114,1035]} 1. c4 {[%emt 0:00:04]} e5 {[%emt 0:00:18]} 2. g3 {[%emt 0:00:11]} Nc6 {[%emt 0:00:41]} 3. Bg2 {[%emt 0:00:15]} d6 {[%emt 0:00:30]} 4. Nc3 {[%emt 0:00:07]} Be6 {[%emt 0:00:24]} 5. Nf3 {[%emt 0:00:29]} Nge7 {[%emt 0:27:06]} 6. b3 {[%emt 0:01:36]} g6 {[%emt 0:15:30]} 7. d4 {[%emt 0:01:24]} Bg4 {[%emt 0:01:14]} 8. Bg5 {[%emt 0:06:16] White is better.} (8. d5 {simplifies} Nb8 9. h3 Bxf3 10. Bxf3 Nd7 11. e4) 8... Bg7 {[%emt 0:01:09] Prevents Bf6} 9. Nd5 {[%emt 0:02:22]} Bxf3 {[%emt 0:00:57]} 10. Bxf3 {[%emt 0:00:07]} exd4 {[%emt 0:01:42]} 11. Nxe7 {[%emt 0:01:21]} Nxe7 {[%emt 0:00:13]} 12. Bxb7 {[%emt 0:00:06]} Rb8 {[%emt 0:00:29]} 13. Bc6+ {[%emt 0:00:08] A strong pair of Bishops.} Kf8 {[%emt 0:00:03] aiming for ...f6.} 14. Bf3 {[%emt 0:00:30]} h6 {[%emt 0:03:13]} 15. Bd2 {[%emt 0:01:18]} Qd7 {[%emt 0:00:25]} 16. Rb1 {[%emt 0:04:59]} Nc6 {[%emt 0:01:05]} 17. Bg2 {[%emt 0:01:06]} h5 {[%emt 0:02:10]} 18. h3 {[%emt 0:05:15][%cal Bh2h3,Bh3h4][%mdl 32]} f5 {[%emt 0:01:25]} 19. O-O {[%emt 0:05:15]} Re8 {[%emt 0:02:45]} 20. h4 {[%emt 0:05:14]} Ne5 {[%emt 0:01:34]} 21. e3 {[%emt 0:01:07]} Ng4 {[%emt 0:18:53]} 22. exd4 {[%emt 0:00:18]} Bxd4 {[%emt 0:02:12] [#]} 23. Bh6+ $1 {[%emt 0:00:38][%mdl 512]} Rxh6 {[%emt 0:00:11][%cal Bh8h6,Bh6h7,Bh7e7][%mdl 32]} (23... Bg7 24. Bg5) 24. Qxd4 {[%emt 0:00:06]} c5 {[%emt 0:00:53]} 25. Qd2 {[%emt 0:04:41] b4 is the strong threat.} Rh7 {[%emt 0:01:23]} 26. Rbd1 {[%emt 0:00:25]} Re6 {[%emt 0:00:39]} 27. b4 {[%emt 0:00:16] Hoping for bxc5.} Qc7 {[%emt 0:00:36]} (27... Nf6 $16 28. a3 Rg7) 28. b5 {[%emt 0:00:16]} Rhe7 {[%emt 0:01:12]} 29. a4 {[%emt 0:02:02][%cal Ba2a4,Ba4a5][%mdl 32]} Kg7 {[%emt 0:01:16]} (29... Nf6 {is a better defense.} 30. a5 Ne4 31. Qh6+ Kg8) 30. a5 {[%emt 0:00:36]} Kh7 {[%emt 0:01:06]} (30... Nf6 {was called for.} 31. Rfe1 Ne4 32. Qb2+ Kh7) 31. Rfe1 $18 {[%emt 0:03:04]} Ne5 $2 {[%emt 0:02:01]} (31... Re5 32. Bd5 Kg7) 32. Bd5 {[%emt 0:00:33] White is clearly winning.} Rf6 {[%emt 0:00:32]} 33. f4 {[%emt 0:16:41]} Ng4 {[%emt 0:03:05] [#]} 34. b6 $1 {[%emt 0:00:45][%mdl 512]} Qd8 {[%emt 0:05:02]} (34... Rxe1+ 35. Rxe1) 35. Rxe7+ {[%emt 0:00:58]} Qxe7 {[%emt 0:00:02]} 36. Re1 {[%emt 0:00:12]} Qg7 {[%emt 0:00:19]} 37. Qb2 {[%emt 0:00:57]} axb6 {[%emt 0:02:10] Black is weak on the light squares} 38. axb6 {[%emt 0:00:05]} Rf8 {[%emt 0:00:46]} 39. Qxg7+ {[%emt 0:00:10]} Kxg7 {[%emt 0:00:02]} 40. b7 {[%emt 0:00:47]} Rb8 {[%emt 0:03:53]} 41. Re7+ {[%emt 0:00:12]} Kh6 {[%emt 0:00:05]} 42. Bc6 {[%emt 0:01:38] Weighted Error Value: White=0.07 (flawless) /Black=0.36.  Mistake:       	---       	Black=4      Inaccurate:     	---       	Black=4      OK:         	White=15    	Black=7      Best:        	White=2     	Black=3} 1-0

[Event "50th La Roda Open 2024"]
[Site "La Roda"]
[Date "2024.03.28"]
[Round "3.3"]
[White "Iglesias Ferreira, Andres"]
[Black "Karthik Venkataraman"]
[Result "0-1"]
[ECO "C70"]
[WhiteElo "2234"]
[BlackElo "2609"]
[Annotator "TA"]
[PlyCount "46"]
[EventDate "2024.03.27"]
[EventType "swiss"]
[EventCountry "ESP"]
[SourceTitle "playchess.com"]
[Source "ChessBase"]
[SourceQuality "1"]
[TimeControl "5400+30"]

{[%evp 9,46,37,47,42,35,37,72,25,22,32,25,21,27,26,28,0,11,-20,-25,-48,-65,-84,-63,-93,-67,-199,-193,-217,-213,-333,-323,-305,-335,-309,-333,-1810,-1506,-29988,-945]} 1. e4 {[%emt 0:00:01]} e5 {[%emt 0:01:58]} 2. Nf3 {[%emt 0:00:11]} Nc6 {[%emt 0:00:05]} 3. Bb5 {[%emt 0:00:11]} a6 {[%emt 0:00:05]} 4. Ba4 {[%emt 0:00:11]} Nge7 {[%emt 0:00:06]} 5. c3 {[%emt 0:02:59]} Ng6 {[%emt 0:00:20]} 6. d4 {[%emt 0:00:33]} exd4 {[%emt 0:00:07]} 7. cxd4 {[%emt 0:00:10]} Bb4+ {[%emt 0:00:06]} 8. Bd2 {[%emt 0:01:16]} (8. Nc3 $16) 8... O-O $11 {[%emt 0:00:12]} 9. O-O {[%emt 0:00:49]} Bxd2 {[%emt 0:00:46]} 10. Qxd2 {[%emt 0:01:25]} d5 {[%emt 0:02:21]} 11. Bxc6 {[%emt 0:06:05]} bxc6 {[%emt 0:00:10]} 12. e5 {[%emt 0:03:39]} Bg4 {[%emt 0:05:16] [#] aiming for ...Bxf3.} 13. Qe3 {[%emt 0:08:16]} Rb8 {[%emt 0:12:36]} 14. Rc1 {[%emt 0:09:25]} Bxf3 {[%emt 0:14:50]} (14... Rxb2 15. Nbd2 Qd7 16. h3 Bxf3 17. Nxf3 $17) 15. Qxf3 {[%emt 0:01:47]} Qh4 {[%emt 0:00:08]} 16. Qe3 {[%emt 0:06:05]} Rxb2 {[%emt 0:00:16] Black is more active.} 17. Rxc6 {[%emt 0:03:18] [#] White does not recover from this.} (17. g3 $15 Qg4 18. Nd2) 17... Ne7 $1 $19 {[%emt 0:01:40]} 18. g3 {[%emt 0:08:30]} Qg4 {[%emt 0:01:11]} 19. Rxc7 {[%emt 0:04:55]} (19. Rc1 {was the only chance.}) 19... Qd1+ {[%emt 0:01:34]} (19... Nf5 20. Qd3 $19) 20. Kg2 {[%emt 0:00:38]} Nf5 {[%emt 0:00:07]} (20... Rxb1 $2 21. Rxb1 Qxb1 22. Rxe7 $18) 21. Qf4 {[%emt 0:03:50]} Rxb1 {[%emt 0:01:04]} 22. Qxf5 $2 {[%emt 0:01:44]} (22. Rxb1 Qxb1 23. h4) 22... Rxa1 {[%emt 0:00:44]} 23. e6 {[%emt 0:00:19]} Qf1+ {[%emt 0:00:23] Weighted Error Value: White=0.93/Black=0.37.  Mistake:       	White=4     	---        Inaccurate:     	White=3     	Black=1      OK:         	White=3     	Black=8      Best:        	White=1     	Black=2      Strong:       	---       	Black=1} ({Inferior is} 23... Rxa2 24. exf7+ Kh8 25. Rc8 (25. Qxd5 $2 {too greedy.} Qd2 $19) (25. Qc8 Rxf2+ 26. Kxf2 Qxd4+ 27. Kg2 Qd2+ 28. Kg1 Qd4+ 29. Kg2 Qd2+ 30. Kh3 Qh6+ 31. Kg2 Qd2+ $11) (25. Qxd5 $2 Qe2 $19) (25. Qc8 Rxf2+ 26. Kxf2 Qxd4+ 27. Kg2 Qd2+ 28. Kh3 Qh6+ 29. Kg2 Qd2+ 30. Kh3 Qh6+ 31. Kg2 Qd2+ $11)) 0-1

[Event "50th La Roda Open 2024"]
[Site "La Roda"]
[Date "2024.03.28"]
[Round "3.4"]
[White "Pranav Vijay"]
[Black "Lopez Mijail, Nicolas"]
[Result "1/2-1/2"]
[ECO "B67"]
[WhiteElo "2252"]
[BlackElo "2231"]
[Annotator "RC"]
[PlyCount "169"]
[EventDate "2024.03.27"]
[EventType "swiss"]
[EventCountry "ESP"]
[SourceTitle "playchess.com"]
[Source "ChessBase"]
[SourceQuality "1"]
[TimeControl "5400+30"]

1. e4 {[%emt 0:00:33]} c5 {[%emt 0:00:05]} 2. Nf3 {[%emt 0:00:09]} d6 {[%emt 0:00:07]} 3. d4 {[%emt 0:00:21]} cxd4 {[%emt 0:00:05]} 4. Nxd4 {[%emt 0:00:06]} Nf6 {[%emt 0:00:06]} 5. Nc3 {[%emt 0:00:10]} Nc6 {[%emt 0:00:09]} 6. Bg5 {[%emt 0:01:11]} e6 {[%emt 0:00:14]} 7. Qd2 {[%emt 0:00:15]} a6 {[%emt 0:00:17]} 8. O-O-O {[%emt 0:01:17]} Bd7 {[%emt 0:00:12]} 9. Kb1 {[%emt 0:03:03]} Be7 {[%emt 0:01:29]} 10. f3 {[%emt 0:02:24]} Nxd4 {[%emt 0:00:59]} 11. Qxd4 {[%emt 0:00:10]} Qc7 {[%emt 0:00:08]} 12. Bxf6 {[%emt 0:05:03]} Bxf6 {[%emt 0:01:50]} 13. Qxd6 {[%emt 0:00:08]} Qxd6 {[%emt 0:00:04]} 14. Rxd6 {[%emt 0:00:07]} Bc6 {[%emt 0:06:28]} 15. Rd1 {[%emt 0:02:52]} Ke7 {[%emt 0:09:36]} 16. Bd3 {[%emt 0:00:25]} Be5 {[%emt 0:01:25]} 17. Ne2 {[%emt 0:05:23]} g5 {[%emt 0:09:28]} 18. g3 {[%emt 0:13:45]} Rad8 {[%emt 0:01:45]} 19. Rdf1 {[%emt 0:09:43]} h6 {[%emt 0:05:30]} 20. h4 {[%emt 0:04:19]} b5 {[%emt 0:04:16]} 21. a3 {[%emt 0:02:27]} a5 {[%emt 0:02:02]} 22. hxg5 {[%emt 0:01:26]} hxg5 {[%emt 0:00:08]} 23. Rxh8 {[%emt 0:46:43]} Rxh8 {[%emt 0:06:23]} 24. f4 {[%emt 0:00:00]} Bg7 {[%emt 0:01:24]} 25. b4 {[%emt 0:00:00]} axb4 {[%emt 0:10:00]} 26. axb4 {[%emt 0:00:00]} Ra8 {[%emt 0:01:53]} 27. c3 {[%emt 0:00:00]} Rd8 {[%emt 0:01:04]} 28. Kc2 {[%emt 0:00:00]} Ra8 {[%emt 0:00:08]} 29. Nc1 {[%emt 0:00:00]} Rh8 {[%emt 0:05:43]} 30. Rf2 {[%emt 0:00:00]} Rh1 {[%emt 0:11:17]} 31. Ne2 {[%emt 0:00:00]} Ra1 {[%emt 0:01:27]} 32. Kd2 {[%emt 0:00:00]} gxf4 {[%emt 0:04:37]} 33. gxf4 {[%emt 0:00:00]} e5 {[%emt 0:00:14]} 34. fxe5 {[%emt 0:00:00]} Bxe5 {[%emt 0:00:20]} 35. Nd4 {[%emt 0:02:29]} Bd7 {[%emt 0:04:38]} 36. Bc2 {[%emt 0:02:51]} f6 {[%emt 0:03:23]} 37. Bb3 {[%emt 0:01:04]} Rb1 {[%emt 0:00:43]} 38. Kc2 {[%emt 0:00:16]} Rh1 {[%emt 0:00:40]} 39. Bd5 {[%emt 0:00:21]} Rh3 {[%emt 0:00:18]} 40. Rd2 {[%emt 0:00:23]} Re3 {[%emt 0:01:04]} 41. Rd3 {[%emt 0:00:37]} Rxd3 {[%emt 0:02:20]} 42. Kxd3 {[%emt 0:00:01]} Kd6 {[%emt 0:00:21]} 43. Bf7 {[%emt 0:00:28]} Bc6 {[%emt 0:01:00]} 44. Ke3 {[%emt 0:00:21]} Kc7 {[%emt 0:01:32]} 45. Bh5 {[%emt 0:00:56]} Kb6 {[%emt 0:00:37]} 46. Kd3 {[%emt 0:00:19]} Kc7 {[%emt 0:01:15]} 47. Bf7 {[%emt 0:00:10]} Kb6 {[%emt 0:01:44]} 48. Bd5 {[%emt 0:00:02]} Bd7 {[%emt 0:00:12]} 49. Bf7 {[%emt 0:00:18]} Bc6 {[%emt 0:00:13]} 50. Nf3 {[%emt 0:00:07]} Bg3 {[%emt 0:00:55]} 51. Be6 {[%emt 0:01:53]} Kc7 {[%emt 0:00:38]} 52. Nd2 {[%emt 0:00:02]} Bd6 {[%emt 0:01:47]} 53. Nb3 {[%emt 0:00:27]} Be5 {[%emt 0:01:12]} 54. Nd4 {[%emt 0:00:41]} Kb6 {[%emt 0:00:14]} 55. Ke3 {[%emt 0:01:13]} Kc7 {[%emt 0:00:21]} 56. Kf3 {[%emt 0:00:25]} Kd6 {[%emt 0:01:08]} 57. Bh3 {[%emt 0:00:14]} Be8 {[%emt 0:00:36]} 58. Bf1 {[%emt 0:00:17]} Bc6 {[%emt 0:00:52]} 59. Ke3 {[%emt 0:00:59]} Kc7 {[%emt 0:00:12]} 60. Bh3 {[%emt 0:00:21]} Kd6 {[%emt 0:00:52]} 61. Kf3 {[%emt 0:00:06]} Kc7 {[%emt 0:00:25]} 62. Bf1 {[%emt 0:00:22]} Kb6 {[%emt 0:00:19]} 63. Bd3 {[%emt 0:01:12]} Bd7 {[%emt 0:00:13]} 64. Be2 {[%emt 0:01:01]} Kc7 {[%emt 0:00:28]} 65. Bd1 {[%emt 0:00:27]} Kb6 {[%emt 0:01:13]} 66. Bb3 {[%emt 0:00:01]} Kc7 {[%emt 0:00:38]} 67. Bf7 {[%emt 0:00:02]} Bc6 {[%emt 0:00:29]} 68. Bg6 {[%emt 0:00:12]} Bd7 {[%emt 0:00:30]} 69. Bf5 {[%emt 0:00:26]} Be8 {[%emt 0:00:30]} 70. Kg4 {[%emt 0:00:04]} Kd6 {[%emt 0:00:13]} 71. Bc8 {[%emt 0:00:17]} Kc7 {[%emt 0:00:10]} 72. Be6 {[%emt 0:00:19]} Kd6 {[%emt 0:00:05]} 73. Kf5 {[%emt 0:00:47]} Bc6 {[%emt 0:00:40]} 74. Bc8 {[%emt 0:01:21]} Kc7 {[%emt 0:00:20]} 75. Be6 {[%emt 0:00:42]} Kd6 {[%emt 0:00:05]} 76. Bb3 {[%emt 0:00:25]} Be8 {[%emt 0:00:31]} 77. Bd1 {[%emt 0:01:16]} Bd7+ {[%emt 0:00:24]} 78. Kg6 {[%emt 0:00:01]} Be8+ {[%emt 0:00:11]} 79. Kh7 {[%emt 0:00:34]} Bd7 {[%emt 0:01:19]} 80. Bc2 {[%emt 0:00:33]} Bf4 {[%emt 0:00:53]} 81. Kg7 {[%emt 0:00:57]} Bd2 {[%emt 0:00:34]} 82. Ne2 {[%emt 0:00:25]} Bg4 {[%emt 0:00:26]} 83. Nd4 {[%emt 0:00:01]} Bd7 {[%emt 0:00:19]} 84. Ne2 {[%emt 0:00:41]} Bg4 {[%emt 0:00:09]} 85. Nd4 1/2-1/2

[Event "50th La Roda Open 2024"]
[Site "La Roda"]
[Date "2024.03.28"]
[Round "3.5"]
[White "Iturrizaga Bonelli, Eduardo"]
[Black "Alvarez Serrano, Carlos"]
[Result "1-0"]
[ECO "E09"]
[WhiteElo "2588"]
[BlackElo "2230"]
[Annotator "TA"]
[PlyCount "79"]
[EventDate "2024.03.27"]
[EventType "swiss"]
[EventCountry "ESP"]
[SourceTitle "playchess.com"]
[Source "ChessBase"]
[SourceQuality "1"]
[TimeControl "5400+30"]

{[%evp 27,79,24,35,28,33,22,20,14,16,0,74,63,91,111,118,102,102,60,117,108,117,85,81,79,92,83,71,89,110,81,181,65,251,91,205,107,140,105,281,189,227,230,247,173,314,241,356,367,277,279,777,750,29998,29999]} 1. c4 {[%emt 0:00:04]} Nf6 {[%emt 0:00:56]} 2. g3 {[%emt 0:01:25]} e6 {[%emt 0:00:16]} 3. Bg2 {[%emt 0:00:05]} d5 {[%emt 0:00:50]} 4. Nf3 {[%emt 0:00:10]} Nbd7 {[%emt 0:01:56]} 5. Qc2 {[%emt 0:08:50]} Be7 {[%emt 0:12:09]} 6. O-O {[%emt 0:01:53]} O-O {[%emt 0:00:09]} 7. d4 {[%emt 0:04:53]} c6 {[%emt 0:00:23]} 8. Bf4 {[%emt 0:14:33]} Nh5 {[%emt 0:02:38]} 9. Bc1 {[%emt 0:02:48]} Nhf6 {[%emt 0:00:49]} 10. Nbd2 {[%emt 0:02:50]} b6 {[%emt 0:00:19]} 11. e4 {[%emt 0:01:01]} Bb7 {[%emt 0:00:26]} 12. Re1 {[%emt 0:09:45]} Rc8 {[%emt 0:01:15]} 13. e5 {[%emt 0:01:34]} Ne8 {[%emt 1:14:54]} 14. cxd5 {[%emt 0:00:04]} cxd5 {[%emt 0:00:00]} 15. Qa4 {[%emt 0:00:02]} Nc7 {[%emt 0:00:00]} 16. Bf1 {[%emt 0:01:15]} (16. Qxa7 $2 {loses.} Ba6 17. h4 Ra8 $19) 16... a5 {[%emt 0:00:00]} 17. Bd3 {[%emt 0:01:00] The position is equal.} Ba6 {[%emt 0:00:00]} 18. Bb1 {[%emt 0:00:05]} Na8 {[%emt 0:00:00]} (18... Qe8 $11 {keeps the balance.}) 19. Qd1 {[%emt 0:02:12]} Re8 {[%emt 0:00:00]} 20. h4 {[%emt 0:04:14]} Nf8 {[%emt 0:00:00]} 21. Nf1 {[%emt 0:02:04]} Bb4 {[%emt 0:00:00]} 22. Bd2 {[%emt 0:17:33]} Qe7 {[%emt 0:00:00]} ({Better is} 22... Bxd2 $14 23. Qxd2 Re7) 23. Ne3 $16 {[%emt 0:04:44]} Rc6 {[%emt 0:00:00]} 24. a3 {[%emt 0:03:52]} (24. Ng4 {keeps more tension.} Rec8 25. Bg5 Qb7 26. h5) 24... Bxd2 {[%emt 0:00:00]} 25. Qxd2 {[%emt 0:00:02]} Rec8 {[%emt 0:00:00]} 26. h5 {[%emt 0:01:06][%cal Oh5h6]} Nc7 {[%emt 0:00:00]} 27. Kg2 {[%emt 0:09:57]} Ne8 {[%emt 0:00:00]} 28. Ng4 {[%emt 0:00:27]} Kh8 {[%emt 0:00:00]} (28... h6 $16 {is a better defense.}) 29. Qf4 {[%emt 0:00:26]} (29. h6 $18 g6 30. Bd3 Bxd3 31. Qxd3) 29... Bb5 $2 {[%emt 0:00:00] [#]} ({Black should try} 29... h6 $14) 30. Rh1 $2 {[%emt 0:03:54]} (30. a4 $1 $18 {[%cal Ra4b5] is the precise move to win.} Bc4 31. Ra3) 30... Ba4 {[%emt 0:00:00]} (30... a4 $16 {keeps fighting.} 31. h6 g6) 31. Ne3 {[%emt 0:00:45]} (31. Bd3 $18) 31... R6c7 {[%emt 0:00:00]} 32. Bd3 {[%emt 0:00:17] White is more active.} Qd7 $2 {[%emt 0:00:00]} (32... h6 $16 {was called for.} 33. g4 Nh7) 33. Rae1 {[%emt 0:01:03]} Bb5 {[%emt 0:00:00]} 34. Bb1 {[%emt 0:00:05]} Ba4 {[%emt 0:00:00]} 35. g4 {[%emt 0:01:39][%cal Bg3g4,Bg4g5,Bg5g6][%mdl 32]} Qb5 {[%emt 0:00:00]} (35... Rb8 $142 36. h6 g6) 36. g5 $18 {[%emt 0:00:23]} Kg8 {[%emt 0:00:00] [#]} (36... Qd7 $142 37. Nh2 Qd8) 37. g6 $1 {[%emt 0:01:27][%mdl 512]} h6 {[%emt 0:00:00] [#] Prevents Ng5.} 38. Ng4 $1 {[%emt 0:00:27][%cal Og4h6] aiming for Nxh6+!} Bc2 $2 {[%emt 0:00:00]} (38... Qd7 39. gxf7+ Qxf7) 39. Bxc2 {[%emt 0:00:06]} Rxc2 {[%emt 0:00:00]} 40. Qxf7+ {[%emt 0:00:01] Weighted Error Value: White=0.30/Black=0.78.  Loses game:     	---       	Black=2      Mistake:       	White=3     	Black=7      Inaccurate:     	White=2     	Black=3      OK:         	White=4     	Black=7      Best:        	White=1     	---        Strong:       	White=1     	---} 1-0